bitfinex/quotes_SOLUSD_20240917
["timestamp","ask_amount","ask_price","bid_price","bid_amount"]
[1726589775496,0.12549,134.66,134.63,6.4729]
[1726589775709,23.902374,134.66,134.63,6.4729]
[1726589776011,0.12549,134.65,134.62,34.4845]
[1726589776215,23.902374,134.63,134.6,7.4293]
[1726589776393,0.12549,134.62,134.59,32.2931]
[1726589776595,0.12549,134.62,134.6,7.4292]
[1726589777215,0.12549,134.62,134.59,32.2935]
[1726589777927,0.12549,134.62,134.6,7.4293]
[1726589779312,0.12549,134.62,134.59,32.2934]
[1726589779743,0.12549,134.62,134.58,16.146557]
[1726589779744,23.902374,134.61,134.58,16.146557]
[1726589780013,23.902374,134.6,134.58,16.146557]
[1726589780222,0.12549,134.59,134.58,0.350557]
[1726589780407,7.55539,134.59,134.58,0.350557]
[1726589780612,31.457764,134.59,134.58,0.350557]
[1726589787722,24.027864,134.55,134.54,0.3071247]
[1726589790232,0.12549,134.55,134.54,7.7398247]
[1726589790439,0.12549,134.55,134.54,0.3071247]
[1726589792145,7.4328,134.54,134.49,33.0117778]
[1726589792451,0.12549,134.55,134.49,25.5767778]
[1726589792452,23.902374,134.53,134.49,25.5767778]
[1726589792609,23.902374,134.53,134.51,7.4342]
[1726589792610,0.12549,134.52,134.51,7.4342]
[1726589792818,0.12549,134.52,134.5,7.4348]
[1726589793310,0.25098,134.53,134.49,25.5767778]
[1726589793736,7.434,134.52,134.49,25.5767778]
[1726589793919,0.12549,134.51,134.49,25.5767778]
[1726589794533,24.027864,134.51,134.49,0.5608778]
[1726589795044,0.12549,134.51,134.49,0.5608778]
[1726589795215,23.902374,134.53,134.49,7.9961778]
[1726589795526,23.776884,134.52,134.49,7.9961778]
[1726589795731,0.12549,134.51,134.49,7.9961778]
[1726589795928,0.12549,134.51,134.49,0.5608778]
[1726589796818,0.25098,134.51,134.49,0.5608778]
[1726589800942,7.68538,134.51,134.49,0.5608778]
[1726589801149,0.25098,134.51,134.49,0.5608778]
[1726589801366,31.337274,134.5,134.49,0.5608778]
[1726589801641,31.462764,134.5,134.49,0.5608778]
[1726589803880,24.027864,134.5,134.49,0.5608778]
[1726589804440,31.462764,134.5,134.49,0.5608778]
[1726589805344,7.436,134.48,134.45,0.3071247]
[1726589805551,7.436,134.48,134.4,0.5608778]
[1726589805552,0.25098,134.43,134.4,19.1616778]
[1726589806046,0.25098,134.44,134.41,7.4398]
[1726589806238,0.25098,134.42,134.4,0.5608778]
[1726589806432,0.25098,134.41,134.4,0.5608778]
[1726589807134,0.12549,134.42,134.4,0.5608778]
[1726589807330,0.25098,134.42,134.4,0.5608778]
[1726589807534,0.25098,134.42,134.39,7.441]
[1726589807535,0.25098,134.42,134.39,8.0588835]
[1726589807750,0.25098,134.42,134.4,7.4404]
[1726589807951,0.12549,134.42,134.4,7.4404]
[1726589808258,31.466864,134.43,134.39,8.0587835]
[1726589808842,7.4394,134.42,134.39,0.6178835]
[1726589809147,7.68988,134.43,134.39,0.6178835]
[1726589809564,7.68988,134.43,134.39,8.0586835]
[1726589810273,7.4394,134.42,134.39,0.6178835]
[1726589810570,0.25098,134.41,134.39,0.6178835]
[1726589812352,7.4389,134.43,134.39,8.0586835]
[1726589812353,0.25098,134.42,134.39,8.0586835]
[1726589812551,23.776884,134.44,134.39,8.0586835]
[1726589812552,7.4383,134.44,134.4,7.4403]
[1726589812765,7.4383,134.44,134.39,8.0583835]
[1726589813165,7.4388,134.43,134.39,8.0583835]
[1726589813965,0.25098,134.42,134.39,8.0583835]
[1726589814278,7.69028,134.42,134.39,0.6178835]
[1726589815382,0.25098,134.42,134.39,8.0588835]
[1726589815548,0.12549,134.43,134.41,7.4399]
[1726589815751,10.99526379,134.45,134.42,1.48786503]
[1726589816067,10.99526379,134.45,134.43,7.4388]
[1726589816369,10.99526379,134.45,134.42,18.5978]
[1726589816548,19.81655944,134.49,134.42,18.5978]
[1726589816966,7.4373,134.46,134.42,26.0371]
[1726589817577,0.25098,134.45,134.42,26.0371]
[1726589817954,7.4366,134.47,134.43,7.4386]
[1726589818177,19.81655944,134.49,134.42,18.5978]
[1726589818355,7.4378,134.45,134.41,22.6922]
[1726589819178,0.25098,134.44,134.41,22.6922]
[1726589819675,19.81655944,134.49,134.41,33.8523]
[1726589820050,7.4377,134.45,134.41,41.292]
[1726589820248,19.81655944,134.49,134.41,41.292]
[1726589820249,7.4373,134.46,134.42,7.439]
[1726589820464,7.4367,134.47,134.43,7.4386]
[1726589820977,0.25098,134.46,134.43,7.4386]
[1726589821477,0.25098,134.46,134.44,7.4381]
[1726589821677,19.81655944,134.49,134.45,20.08143553]
[1726589821979,18.5842,134.53,134.49,7.4353]
[1726589821980,7.4334,134.53,134.49,7.4353]
[1726589822156,7.4327,134.54,134.5,7.4348]
[1726589822487,19.30560114,134.55,134.51,8.92092696]
[1726589822665,7.4316,134.56,134.52,7.4337]
[1726589822865,0.2819208,134.57,134.51,18.5851]
[1726589823068,7.4325,134.55,134.51,18.5851]
[1726589823264,7.4327,134.54,134.49,7.4353]
[1726589823566,7.434,134.52,134.48,26.0256]
[1726589823875,7.4334,134.53,134.48,26.0256]
[1726589824177,7.4334,134.53,134.49,7.4354]
[1726589824377,0.25098,134.53,134.5,1.48672489]
[1726589824683,24.027864,134.55,134.51,7.4343]
[1726589824684,7.4322,134.55,134.51,7.4343]
[1726589824874,18.50396145,134.56,134.51,7.4343]
[1726589825050,7.4322,134.55,134.51,7.4343]
[1726589825685,11.07226145,134.56,134.5,18.5867]
[1726589825883,24.027864,134.55,134.5,18.5867]
[1726589826057,0.25098,134.53,134.5,18.5867]
[1726589826258,7.68428,134.53,134.5,18.5867]
[1726589826483,0.25098,134.53,134.5,18.5867]
[1726589827476,0.25098,134.53,134.5,26.0215]
[1726589829054,0.25098,134.53,134.5,18.5867]
[1726589829257,0.25098,134.53,134.47,35.2464]
[1726589829480,7.4355,134.49,134.47,16.6558]
[1726589829654,7.436,134.48,134.47,16.6558]
[1726589829858,7.436,134.48,134.46,6.2129]
[1726589829859,0.12549,134.47,134.46,6.2129]
[1726589830868,0.12549,134.47,134.44,34.6267048]
[1726589831088,0.12549,134.45,134.44,16.0320048]
[1726589831594,7.68868,134.45,134.44,16.0320048]
[1726589832583,0.25098,134.45,134.44,16.0320048]
[1726589832791,23.902374,134.5,134.44,16.0320048]
[1726589833001,0.12549,134.48,134.44,16.0320048]
[1726589833287,7.435,134.5,134.46,7.437]
[1726589833461,10.99831964,134.51,134.44,23.4697048]
[1726589833658,7.435,134.5,134.45,7.4376]
[1726589834087,7.4355,134.49,134.45,7.4376]
[1726589834298,7.4362,134.48,134.44,16.1620913]
[1726589834594,7.56219,134.47,134.44,16.1620913]
[1726589834883,7.56319,134.45,134.44,0.1711913]
[1726589835259,31.340074,134.45,134.44,0.1711913]
[1726589835662,31.465564,134.45,134.44,0.1711913]
[1726589836166,7.4393,134.42,134.41,15.6769]
[1726589836484,0.25098,134.41,134.39,6.4858256]
[1726589836868,0.12549,134.4,134.39,6.4858256]
[1726589838506,31.468264,134.4,134.39,0.3230256]
[1726589841175,0.25098,134.4,134.39,0.3230256]
[1726589842190,31.468264,134.4,134.39,0.3230256]
[1726589843492,61.468264,134.4,134.39,0.3230256]
[1726589845192,31.469364,134.38,134.37,0.2481084]
[1726589845393,60.857764,134.38,134.37,0.2481084]
[1726589847590,7.69418,134.35,134.34,0.3230256]
[1726589847911,0.25098,134.35,134.34,0.3230256]
[1726589848681,30.25098,134.35,134.34,0.3230256]
[1726589849510,30.0,134.35,134.34,7.7667256]
[1726589849906,19.75204148,134.38,134.35,7.443]
[1726589850511,19.75204148,134.38,134.36,7.4425]
[1726589850815,7.4395,134.42,134.37,7.4417]
[1726589851019,7.44,134.41,134.37,7.4417]
[1726589852217,7.44,134.41,134.36,7.4425]
[1726589852719,0.25098,134.4,134.35,26.0503]
[1726589852915,0.25098,134.4,134.34,0.3230256]
[1726589853221,0.25098,134.4,134.34,7.7663256]
[1726589853222,0.12549,134.37,134.34,7.7663256]
[1726589854615,0.12549,134.35,134.34,0.3230256]
[1726589854795,7.4425,134.37,134.34,0.3230256]
[1726589854995,0.12549,134.36,134.34,0.3230256]
[1726589857516,30.0,134.37,134.34,7.7665256]
[1726589858523,30.0,134.37,134.35,7.4432]
[1726589860193,0.12549,134.38,134.35,7.4432]
[1726589860520,0.12549,134.37,134.34,18.9320256]
[1726589860821,7.56809,134.37,134.34,0.3230256]
[1726589860996,0.25098,134.37,134.34,0.3230256]
[1726589861508,24.027864,134.37,134.34,0.3230256]
[1726589861817,7.69418,134.35,134.34,0.3230256]
[1726589862819,37.69418,134.35,134.34,0.3230256]
[1726589864409,30.25098,134.35,134.34,0.3230256]
[1726589864926,37.69418,134.35,134.34,0.3230256]
[1726589865313,30.25098,134.35,134.34,0.3230256]
[1726589866514,37.69418,134.35,134.34,0.3230256]
[1726589866817,61.471064,134.35,134.34,0.3230256]
[1726589868332,30.12549,134.35,134.34,0.3799728]
[1726589868494,7.4425,134.37,134.34,0.3799728]
[1726589868832,7.4416,134.38,134.34,26.4328728]
[1726589868996,29.63140414,134.41,134.34,0.3799728]
[1726589869192,18.6029,134.39,134.34,0.3799728]
[1726589869929,7.4426,134.37,134.34,0.3799728]
[1726589870422,11.03080414,134.41,134.34,0.3799728]
[1726589870611,7.4415,134.38,134.34,14.4835728]
[1726589871124,7.4422,134.37,134.34,7.0402728]
[1726589871304,11.03080414,134.41,134.34,7.0402728]
[1726589871505,7.4405,134.4,134.36,7.4423]
[1726589872002,11.03080414,134.41,134.35,18.6076]
[1726589872208,11.03080414,134.41,134.38,16.2268]
[1726589872528,30.0,134.39,134.38,16.2268]
[1726589872905,18.47070414,134.41,134.38,16.2268]
[1726589874125,11.03080414,134.41,134.38,23.6683]
[1726589874498,18.47070414,134.41,134.38,16.2268]
[1726589875438,7.69198,134.39,134.38,16.2268]
[1726589876424,37.69198,134.39,134.38,16.2268]
[1726589877832,61.468864,134.39,134.38,16.2268]
[1726589878531,7.56749,134.38,134.34,30.6729728]
[1726589878835,7.4425,134.37,134.34,23.2293728]
[1726589879132,7.4427,134.36,134.34,23.2293728]
[1726589879435,7.4432,134.35,134.34,23.2293728]
[1726589879634,0.12549,134.35,134.34,23.2293728]
[1726589879820,7.56869,134.35,134.34,23.2293728]
[1726589880017,7.56869,134.35,134.34,16.5690728]
[1726589880211,7.69418,134.35,134.34,16.5690728]
[1726589880410,0.25098,134.35,134.34,16.5690728]
[1726589881136,7.69418,134.35,134.34,16.5690728]
[1726589881338,7.69418,134.35,134.29,37.7422014]
[1726589881339,7.4447,134.33,134.29,0.5116014]
[1726589881654,0.25098,134.34,134.29,0.5116014]
[1726589881655,7.4457,134.31,134.29,0.5116014]
[1726589881816,0.25098,134.3,134.29,0.5116014]
[1726589882014,7.69698,134.3,134.29,0.5116014]
[1726589882221,7.57149,134.3,134.29,0.5116014]
[1726589882422,7.69698,134.3,134.29,0.5116014]
[1726589884045,37.69698,134.3,134.29,0.5116014]
[1726589884633,30.25098,134.3,134.29,0.5116014]
[1726589885848,30.0,134.3,134.29,0.5116014]
[1726589888923,37.69698,134.3,134.29,0.5116014]
[1726589889343,7.69698,134.3,134.29,0.5116014]
[1726589891141,0.12549,134.27,134.25,0.263493]
[1726589891448,24.027864,134.31,134.25,0.263493]
[1726589891449,0.12549,134.3,134.25,0.263493]
[1726589891833,0.25098,134.28,134.25,0.263493]
[1726589892049,0.25098,134.28,134.25,1.75299747]
[1726589892257,7.69838,134.28,134.25,0.263493]
[1726589892544,7.4479,134.27,134.25,0.263493]
[1726589892743,0.25098,134.28,134.25,0.263493]
[1726589892744,7.69818,134.28,134.25,0.263493]
[1726589892943,0.12549,134.26,134.25,0.263493]
[1726589893245,7.69818,134.28,134.25,0.263493]
[1726589893643,7.4479,134.27,134.25,0.263493]
[1726589893965,0.25098,134.26,134.25,0.263493]
[1726589894156,7.69918,134.26,134.25,0.263493]
[1726589898951,0.12549,134.26,134.25,0.263493]
[1726589899336,7.57369,134.26,134.25,0.263493]
[1726589900255,7.69918,134.26,134.25,0.263493]
[1726589901054,7.69918,134.26,134.21,0.5116014]
[1726589901055,7.4494,134.24,134.21,0.5116014]
[1726589902434,7.4494,134.24,134.2,8.0064444]
[1726589902625,7.4495,134.24,134.2,8.0065444]
[1726589902830,0.12549,134.23,134.2,0.5550444]
[1726589903143,7.57579,134.23,134.2,0.5550444]
[1726589903343,7.4495,134.24,134.2,9.49663414]
[1726589903549,7.69998,134.25,134.21,7.4509]
[1726589903754,7.69998,134.25,134.22,1.48996681]
[1726589904263,7.69998,134.25,134.21,7.4509]
[1726589904637,7.4495,134.24,134.2,8.0064444]
[1726589905058,7.57539,134.23,134.2,0.5550444]
[1726589905271,7.4499,134.23,134.2,0.5550444]
[1726589905574,18.87318,134.25,134.2,0.5550444]
[1726589905883,7.451,134.21,134.2,0.5550444]
[1726589906374,7.57549,134.23,134.2,0.5550444]
[1726589906578,7.4495,134.24,134.2,9.49664713]
[1726589906781,7.4483,134.26,134.22,7.4499]
[1726589906988,7.4482,134.26,134.22,26.076]
[1726589907287,7.4493,134.24,134.2,8.0061444]
[1726589907445,26.6055393,134.29,134.2,0.5550444]
[1726589907651,7.4493,134.24,134.2,8.0061444]
[1726589908353,26.6055393,134.29,134.2,0.5550444]
[1726589908354,7.4505,134.22,134.2,0.5550444]
[1726589909156,7.70198,134.21,134.2,0.5550444]
[1726589909679,0.25098,134.21,134.2,0.5550444]
[1726589909891,7.4506,134.22,134.2,0.5550444]
[1726589910049,23.776884,134.28,134.2,0.5550444]
[1726589910050,7.4499,134.23,134.2,0.5550444]
[1726589910365,7.57539,134.23,134.2,0.5550444]
[1726589910674,0.12549,134.23,134.2,0.5550444]
[1726589911651,7.4506,134.22,134.2,0.5550444]
[1726589912051,7.451,134.21,134.2,0.5550444]
[1726589912250,7.451,134.21,134.16,0.3160286]
[1726589912251,7.4519,134.2,134.16,7.7697286]
[1726589912669,0.12549,134.19,134.16,7.7697286]
[1726589912875,0.12549,134.19,134.16,9.06361371]
[1726589913083,7.57699,134.2,134.16,7.7695286]
[1726589913957,7.4521,134.19,134.16,0.3160286]
[1726589915170,7.57719,134.2,134.16,7.7697286]
[1726589915756,7.4521,134.19,134.16,0.3160286]
[1726589916081,7.4532,134.17,134.16,0.3160286]
[1726589916575,7.70418,134.17,134.16,0.3160286]
[1726589916881,7.4528,134.18,134.16,0.3160286]
[1726589917882,7.57769,134.19,134.16,0.3160286]
[1726589919873,0.12549,134.19,134.16,18.9502286]
[1726589920091,18.6259,134.23,134.16,20.44081896]
[1726589920321,7.4511,134.21,134.17,7.4528]
[1726589920481,7.4511,134.21,134.18,1.49037694]
[1726589920684,7.4516,134.2,134.16,26.4038286]
[1726589920991,7.4511,134.21,134.17,7.4531]
[1726589921594,18.6236,134.24,134.16,18.9502286]
[1726589921793,7.4517,134.2,134.16,26.4039286]
[1726589923095,7.4513,134.21,134.17,7.453]
[1726589923297,7.4516,134.2,134.16,26.4037286]
[1726589924017,7.4516,134.2,134.17,7.4532]
[1726589924499,7.4511,134.21,134.17,7.4532]
[1726589924907,7.57609,134.22,134.18,26.0837]
[1726589925114,7.9888393,134.25,134.18,18.6316]
[1726589925293,7.60918883,134.29,134.19,1.4899442]
[1726589925492,7.4504,134.23,134.19,26.0813]
[1726589925793,18.6223,134.25,134.16,18.9494286]
[1726589925989,7.4515,134.2,134.16,26.4027286]
[1726589926592,7.4527,134.18,134.16,0.3160286]
[1726589926791,7.70328,134.19,134.16,0.3160286]
[1726589927207,0.25098,134.19,134.16,0.3160286]
[1726589927513,7.4519,134.2,134.16,9.26021576]
[1726589927910,7.4519,134.2,134.16,7.7697286]
[1726589928103,7.4522,134.19,134.16,0.3160286]
[1726589928305,7.4527,134.18,134.16,0.3160286]
[1726589928504,7.4524,134.19,134.16,0.3160286]
[1726589928704,7.4527,134.18,134.16,0.3160286]
[1726589928911,7.4522,134.19,134.16,0.3160286]
[1726589929217,0.12549,134.18,134.16,0.3160286]
[1726589930308,7.57859,134.18,134.16,0.3160286]
[1726589930517,7.70418,134.17,134.16,0.3160286]
[1726589931616,7.70418,134.17,134.13,0.2481084]
[1726589931617,0.12549,134.15,134.13,0.2481084]
[1726589932193,0.12549,134.14,134.13,0.2481084]
[1726589932418,0.12549,134.16,134.13,0.2481084]
[1726589932419,7.4541,134.16,134.13,0.2481084]
[1726589932918,0.25098,134.16,134.13,7.7031084]
[1726589933292,7.70498,134.16,134.13,0.2481084]
[1726589935129,7.4544,134.15,134.13,0.2481084]
[1726589935296,0.25098,134.14,134.13,0.2481084]
[1726589935912,7.70578,134.14,134.13,0.2481084]
[1726589936193,0.25098,134.14,134.13,0.2481084]
[1726589936420,7.4541,134.16,134.13,0.2481084]
[1726589936618,0.25098,134.15,134.13,7.7034084]
[1726589936807,7.4534,134.17,134.13,7.7034084]
[1726589936808,0.25098,134.16,134.13,7.7034084]
[1726589937405,0.25098,134.17,134.14,7.4547]
[1726589937638,0.12549,134.17,134.14,7.4547]
[1726589937936,7.4527,134.18,134.14,7.4543]
[1726589938119,7.4522,134.19,134.15,7.4542]
[1726589938507,7.4527,134.18,134.14,7.4547]
[1726589938930,7.70418,134.17,134.13,26.3414084]
[1726589939128,7.4538,134.16,134.13,18.8862084]
[1726589939436,7.70438,134.17,134.13,26.3416084]
[1726589939815,0.25098,134.17,134.14,7.4547]
[1726589940210,7.4522,134.19,134.15,7.4543]
[1726589940632,7.4526,134.18,134.14,7.4547]
[1726589940932,23.776884,134.2,134.13,18.8862084]
[1726589941239,7.4545,134.15,134.13,0.2481084]
[1726589941444,7.58029,134.14,134.13,0.2481084]
[1726589942145,7.70578,134.14,134.13,0.2481084]
[1726589943012,7.70578,134.14,134.11,0.3160286]
[1726589943013,7.456,134.12,134.11,0.3160286]
[1726589943227,7.70698,134.12,134.11,0.3160286]
[1726589943619,0.25098,134.12,134.11,0.3160286]
[1726589943918,7.70698,134.12,134.11,0.3160286]
[1726589944131,0.25098,134.12,134.11,0.3160286]
[1726589944813,0.12549,134.13,134.11,0.3160286]
[1726589945033,0.12549,134.14,134.11,0.3160286]
[1726589945233,20.55159734,134.18,134.12,18.6393]
[1726589945416,28.00459734,134.18,134.13,7.4549]
[1726589945732,28.00459734,134.18,134.14,7.4546]
[1726589946118,7.4533,134.17,134.13,7.4553]
[1726589946730,0.12549,134.16,134.13,7.4553]
[1726589947251,0.25098,134.16,134.12,26.0952]
[1726589947535,20.55159734,134.18,134.13,1.49105442]
[1726589947536,0.25098,134.17,134.13,1.49105442]
[1726589947716,20.55159734,134.18,134.14,26.0915]
[1726589948507,20.55159734,134.18,134.16,7.4536]
[1726589948710,15.4399393,134.21,134.17,7.4532]
[1726589948939,7.4505,134.22,134.17,7.4532]
[1726589949316,7.45,134.23,134.18,7.4526]
[1726589949820,26.84128773,134.24,134.19,7.4519]
[1726589950028,7.45,134.23,134.19,7.4519]
[1726589950316,7.45,134.23,134.18,26.0835]
[1726589950719,19.39188773,134.24,134.18,26.0835]
[1726589950720,26.84128773,134.24,134.19,7.4519]
[1726589950922,11.40304843,134.24,134.21,7.4505]
[1726589951135,11.40304843,134.24,134.16,37.2688]
[1726589951346,11.40304843,134.24,134.17,18.6322]
[1726589951347,7.45,134.23,134.17,18.6322]
[1726589951516,7.45,134.23,134.18,7.4522]
[1726589951921,7.45,134.23,134.19,7.4519]
[1726589952114,11.40304843,134.24,134.19,7.4519]
[1726589952115,18.85244843,134.24,134.2,8.94167621]
[1726589952540,11.40304843,134.24,134.2,8.94167621]
[1726589952724,11.40304843,134.24,134.19,18.6297]
[1726589953127,11.40304843,134.24,134.21,7.4507]
[1726589953539,11.40304843,134.24,134.23,7.4498]
[1726589953847,12.13508889,134.28,134.21,18.6264]
[1726589953848,15.7520679,134.28,134.21,18.6264]
[1726589954058,7.4478,134.27,134.23,7.4498]
[1726589954245,7.7632286,134.28,134.23,7.4498]
[1726589954619,0.3160286,134.28,134.24,8.93902965]
[1726589954824,0.3160286,134.28,134.24,7.4493]
[1726589955681,0.3160286,134.28,134.25,7.4486]
[1726589956162,0.3160286,134.28,134.24,1.48957723]
[1726589956163,0.3160286,134.28,134.24,7.4492]
[1726589956532,7.7632286,134.28,134.23,26.0739]
[1726589956949,7.7632286,134.28,134.24,7.4493]
[1726589957127,0.3160286,134.28,134.24,7.4493]
[1726589957331,0.3160286,134.28,134.23,18.6242]
[1726589957332,0.3160286,134.28,134.25,7.4484]
[1726589957527,7.7631286,134.28,134.24,7.4492]
[1726589957929,0.3160286,134.28,134.23,26.0739]
[1726589958253,7.7632286,134.28,134.24,7.4492]
[1726589958635,0.12549,134.27,134.23,18.6242]
[1726589958957,7.4489,134.25,134.21,7.4508]
[1726589959162,7.4489,134.25,134.2,18.6285]
[1726589959647,7.4493,134.24,134.2,18.6285]
[1726589959854,7.4501,134.23,134.19,7.4519]
[1726589960037,7.4501,134.23,134.18,7.4525]
[1726589960560,7.4501,134.23,134.17,18.6321]
[1726589960561,7.45,134.23,134.19,7.4519]
[1726589961361,7.57489,134.24,134.2,7.4513]
[1726589961536,7.4488,134.25,134.21,8.94088128]
[1726589962057,7.4488,134.25,134.21,7.4509]
[1726589962842,7.4488,134.25,134.2,7.4513]
[1726589964065,7.4488,134.25,134.19,18.6297]
[1726589964066,7.4915223,134.25,134.21,7.4509]
[1726589965855,0.0427223,134.25,134.22,8.94004996]
[1726589966055,0.0427223,134.25,134.23,7.4496]
[1726589966251,0.0427223,134.25,134.24,1.48972697]
[1726589966451,0.0427223,134.25,134.21,18.6269]
[1726589966452,7.4920223,134.25,134.21,18.6269]
[1726589966871,7.4494,134.24,134.21,18.6269]
[1726589967165,7.4494,134.24,134.19,7.4516]
[1726589967471,7.4494,134.24,134.2,7.4515]
[1726589967672,7.4499,134.23,134.18,18.6307]
[1726589968253,7.451,134.21,134.18,18.6307]
[1726589968549,7.4506,134.22,134.18,26.0833]
[1726589969180,0.25098,134.24,134.15,18.6349]
[1726589969472,0.12549,134.22,134.15,18.6349]
[1726589969774,7.4524,134.19,134.15,26.089]
[1726589970076,0.25098,134.22,134.15,18.6349]
[1726589970442,7.4513,134.21,134.16,7.4534]
[1726589970959,7.4515,134.2,134.16,7.4534]
[1726589971159,7.4521,134.19,134.15,26.0891]
[1726589971365,0.25098,134.22,134.12,18.864607]
[1726589971366,18.6283,134.21,134.12,18.864607]
[1726589971672,7.4538,134.16,134.12,18.864607]
[1726589971844,7.4543,134.15,134.12,0.225607]
[1726589972044,18.6306,134.19,134.12,0.225607]
[1726589972045,7.4553,134.14,134.12,0.225607]
[1726589973482,7.4544,134.15,134.12,0.225607]
[1726589975848,0.12549,134.16,134.12,0.225607]
[1726589976777,7.4543,134.15,134.12,0.225607]
[1726589977651,7.70588,134.14,134.12,0.225607]
[1726589977884,7.4554,134.13,134.12,0.225607]
[1726589978087,7.70638,134.13,134.12,0.225607]
[1726589980348,7.70638,134.13,134.08,0.2683293]
[1726589980349,7.4571,134.1,134.08,0.2683293]
[1726589980555,7.4576,134.09,134.08,0.2683293]
[1726589980983,7.70858,134.09,134.08,0.2683293]
[1726589982495,0.25098,134.09,134.08,0.2683293]
[1726589982662,7.70858,134.09,134.08,0.2683293]
[1726589983491,0.25098,134.09,134.08,0.2683293]
[1726589983866,7.70858,134.09,134.08,0.2683293]
[1726589992464,11.13040164,134.12,134.08,0.2683293]
[1726589992671,11.13040164,134.12,134.1,7.4569]
[1726589992885,11.13040164,134.12,134.11,7.4565]
[1726589993199,7.4545,134.15,134.11,7.4565]
[1726589993563,18.6361,134.15,134.08,0.2683293]
[1726589993789,0.12549,134.1,134.08,0.2683293]
[1726589994200,7.58309,134.09,134.08,0.2683293]
[1726589994493,7.70858,134.09,134.08,0.2683293]
[1726589996495,7.4589,134.07,134.04,0.5164377]
[1726589996687,7.4594,134.06,134.04,0.5164377]
[1726589997065,0.25098,134.05,134.04,0.5164377]
[1726589997595,7.71088,134.05,134.04,0.5164377]
[1726589999369,7.71088,134.05,134.0,18.9239293]
[1726589999370,0.25098,134.03,134.0,18.9239293]
[1726589999800,0.25098,134.01,134.0,0.2683293]
[1726590000166,7.71308,134.01,134.0,0.2683293]
[1726590001671,0.25098,134.01,134.0,0.2683293]
[1726590001994,7.71308,134.01,134.0,0.2683293]
[1726590002467,0.12549,134.03,134.0,0.2683293]
[1726590002671,7.4621,134.01,134.0,0.2683293]
[1726590003290,0.12549,134.01,134.0,0.2683293]
[1726590003680,29.54288386,134.06,134.0,0.2683293]
[1726590003681,7.4611,134.03,134.0,0.2683293]
[1726590003872,29.54288386,134.06,134.0,0.2683293]
[1726590004082,7.4604,134.05,134.0,7.7308293]
[1726590004394,10.89458386,134.06,134.0,7.7308293]
[1726590004395,7.4605,134.04,134.0,7.7308293]
[1726590004600,7.4603,134.05,134.0,7.7308293]
[1726590005107,7.4605,134.04,134.0,7.7308293]
[1726590005277,10.89458386,134.06,134.0,0.2683293]
[1726590005474,7.4621,134.02,134.0,0.2683293]
[1726590005674,0.12549,134.02,134.0,0.2683293]
[1726590005994,7.71248,134.02,134.0,0.2683293]
[1726590006195,0.12549,134.01,134.0,0.2683293]
[1726590006504,0.12549,134.01,133.97,10.0]
[1726590006680,0.25098,134.0,133.97,10.0]
[1726590007081,7.4632,133.99,133.97,10.0]
[1726590007468,0.25098,133.98,133.97,10.0]
[1726590007678,7.71478,133.98,133.97,10.0]
[1726590007999,0.25098,133.98,133.97,10.0]
[1726590008480,0.25098,133.98,133.97,10.2481084]
[1726590009197,7.71478,133.98,133.97,10.2481084]
[1726590009502,7.71588,133.96,133.95,0.3412427]
[1726590009796,24.027864,133.95,133.89,0.5510267]
[1726590009998,0.12549,133.92,133.89,0.5510267]
[1726590010506,0.12549,133.92,133.89,8.0197267]
[1726590010702,0.12549,133.92,133.89,0.5510267]
[1726590010900,7.59279,133.92,133.89,0.5510267]
[1726590011101,7.59329,133.91,133.89,0.5510267]
[1726590011406,7.71918,133.9,133.89,0.5510267]
[1726590011778,7.71918,133.9,133.85,0.3029183]
[1726590011779,0.12549,133.86,133.85,0.3029183]
[1726590011979,7.4701,133.87,133.85,0.3029183]
[1726590011980,0.12549,133.87,133.85,0.3029183]
[1726590012308,0.12549,133.86,133.85,0.3029183]
[1726590012904,20.0,133.9,133.85,0.3029183]
[1726590012905,0.12549,133.89,133.85,0.3029183]
[1726590013075,0.25098,133.89,133.85,7.7739183]
[1726590013480,7.71988,133.89,133.85,0.3029183]